Workbook

Sheet Data Entry
C4: Data Entry For Comprehensive Ratio Analysis
H6: Four Year | L6: This template is like a moving picture of how well the business is doing in terms of
D7: 2010 | E7: 2011 | F7: 2012 | G7: 2013 | H7: Totals | L7: sales, costs, and profitability, usually prepared on a monthly basis but covering an
L8: accounting period of one year.
C9: Sales
C10: Sales | D10: 2,010,000 | E10: 2,060,000 | F10: 2,121,800 | G10: 2,391,800 | H10: =SUM(D10:G10) -> 8,583,600 | L10: Enter data into the yellow shaded sales, then view the resulting report on the following worksheet.
C11: Other | D11: 0 | E11: 0 | F11: 0 | G11: 0 | H11: =SUM(D11:G11) -> 0
C12: Total Sales | D12: =SUM(D10:D11) -> 2,010,000 | E12: =SUM(E10:E11) -> 2,060,000 | F12: =SUM(F10:F11) -> 2,121,800 | G12: =SUM(G10:G11) -> 2,391,800 | H12: =SUM(H10:H11) -> 8,583,600
C14: Less Cost of Goods Sold
C15: Materials | D15: 320,000 | E15: 329,600 | F15: 339,488 | G15: 389,088 | H15: =SUM(D15:G15) -> 1,378,176
C16: Labor | D16: 500,000 | E16: 515,000 | F16: 530,450 | G16: 545,450 | H16: =SUM(D16:G16) -> 2,090,900
C17: Overhead | D17: 125,000 | E17: 128,750 | F17: 132,613 | G17: 186,363 | H17: =SUM(D17:G17) -> 572,725
C18: Other | D18: 0 | E18: 0 | F18: 0 | G18: 0 | H18: =SUM(D18:G18) -> 0
C19: Total Cost of Goods Sold | D19: =SUM(D15:D18) -> 945,000 | E19: =SUM(E15:E18) -> 973,350 | F19: =SUM(F15:F18) -> 1,002,551 | G19: =SUM(G15:G18) -> 1,120,901 | H19: =SUM(H15:H18) -> 4,041,801
C21: Gross Profit | D21: =D12-D19 -> 1,065,000 | E21: =E12-E19 -> 1,086,650 | F21: =F12-F19 -> 1,119,250 | G21: =G12-G19 -> 1,270,900 | H21: =H12-H19 -> 4,541,799
C23: Operating Expenses
C24: Salaries and wages | D24: 190,000 | E24: 190,000 | F24: 190,000 | G24: 190,000 | H24: =SUM(D24:G24) -> 760,000
C25: Employee benefits | D25: 50,000 | E25: 51,500 | F25: 53,045 | G25: 54,545 | H25: 209,090
C26: Payroll taxes | D26: 30,000 | E26: 30,900 | F26: 31,827 | G26: 32,727 | H26: 125,454
C27: Rent | D27: 5,000 | E27: 5,150 | F27: 5,305 | G27: 5,455 | H27: 20,909
C28: Utilities | D28: 3,000 | E28: 3,090 | F28: 3,183 | G28: 3,273 | H28: 12,545
C29: Repairs and maintenance | D29: 1,000 | E29: 1,030 | F29: 1,061 | G29: 1,061 | H29: 4,152
C30: Insurance | D30: 1,000 | E30: 1,030 | F30: 1,061 | G30: 1,061 | H30: 4,152
C31: Travel | D31: 2,133 | E31: 2,197 | F31: 2,263 | G31: 2,263 | H31: 8,856
C32: Telephone | D32: 11,000 | E32: 11,330 | F32: 11,670 | G32: 12,670 | H32: 46,670
C33: Postage | D33: 4,000 | E33: 4,120 | F33: 4,244 | G33: 4,244 | H33: 16,607
C34: Office supplies | D34: 6,000 | E34: 6,180 | F34: 6,365 | G34: 6,365 | H34: 24,911
C35: Advertising | D35: 1,000 | E35: 1,030 | F35: 1,061 | G35: 1,061 | H35: 4,152
C36: Marketing/promotion | D36: 3,000 | E36: 3,090 | F36: 3,183 | G36: 3,183 | H36: 12,455
C37: Professional fees | D37: 1,000 | E37: 1,030 | F37: 1,061 | G37: 1,061 | H37: 4,152
C38: Training and development | D38: 1,000 | E38: 1,030 | F38: 1,061 | G38: 1,061 | H38: 4,152
C39: Bank charges | D39: 1,000 | E39: 1,030 | F39: 1,061 | G39: 1,061 | H39: 4,152
C40: Depreciation | D40: 1,000 | E40: 1,030 | F40: 1,061 | G40: 1,061 | H40: 4,152
C41: Interest Expense | D41: 6,000 | E41: 6,000 | F41: 6,000 | G41: 6,000 | H41: 24,000
C42: Other | D42: 0 | E42: 0 | F42: 0 | G42: 0 | H42: 0
C43: Total Operating Expenses | D43: =SUM(D24:D42) -> 317,133 | E43: =SUM(E24:E42) -> 320,767 | F43: =SUM(F24:F42) -> 324,510 | G43: =SUM(G24:G42) -> 328,150 | H43: =SUM(D43:G43) -> 1,290,560
C45: Operating Income | D45: =D21-D43 -> 747,867 | E45: =E21-E43 -> 765,883 | F45: =F21-F43 -> 794,740 | G45: =G21-G43 -> 942,750 | H45: =H21-H43 -> 3,251,239
C47: Interest income (expense) | D47: 16,250 | E47: 16,738 | F47: 17,240 | G47: 18,227 | H47: =SUM(D47:G47) -> 68,454
C48: Other income (expense) | D48: 0 | E48: 0 | F48: 0 | G48: 0 | H48: =SUM(D48:G48) -> 0
C49: Total Nonoperating Income (Expense) | D49: =SUM(D47:D48) -> 16,250 | E49: =SUM(E47:E48) -> 16,738 | F49: =SUM(F47:F48) -> 17,240 | G49: =SUM(G47:G48) -> 18,227 | H49: =SUM(H47:H48) -> 68,454
C51: Income (Loss) Before Taxes | D51: =D45+D49 -> 764,117 | E51: =E45+E49 -> 782,621 | F51: =F45+F49 -> 811,979 | G51: =G45+G49 -> 960,977 | H51: =H45+H49 -> 3,319,693
C53: Income Taxes | D53: 148,563 | E53: 149,144 | F53: 152,922 | G53: 162,629 | H53: =SUM(D53:G53) -> 613,258
C55: Net Income (Loss) | D55: =D51-D53 -> 615,554 | E55: =E51-E53 -> 633,477 | F55: =F51-F53 -> 659,057 | G55: =G51-G53 -> 798,348 | H55: =H51-H53 -> 2,706,435
C57: Cumulative Net Income (Loss) | D57: =D55 -> 615,554 | E57: =E55+D57 -> 1,249,031 | F57: =F55+E57 -> 1,908,088 | G57: =G55+F57 -> 2,706,435 | H57: =H55+G57 -> 5,412,870
C60: Balance Sheet - Years 1 to 4
D63: Opening | E63: Year 1 | F63: Year 2 | G63: Year 3 | H63: Year 4
C65: ASSETS
C67: Current Assets
C68: Cash | D68: 507,604 | E68: 451,000 | F68: 464,530 | G68: 478,466 | H68: 492,820
C69: Notes Receivable | D69: 4,300 | E69: 1,200 | F69: 3,200 | G69: 3,000 | H69: 3,400
C70: Accounts receivable, net | D70: 393,928 | E70: 350,000 | F70: 360,500 | G70: 371,315 | H70: 382,454
C71: Inventory | D71: 450,204 | E71: 400,000 | F71: 412,000 | G71: 424,360 | H71: 437,091
C72: Other | D72: 11,255 | E72: 10,000 | F72: 10,300 | G72: 10,609 | H72: 10,927
C73: Total Current Assets | D73: =SUM(D68:D72) -> 1,367,291 | E73: =SUM(E68:E72) -> 1,212,200 | F73: =SUM(F68:F72) -> 1,250,530 | G73: =SUM(G68:G72) -> 1,287,750 | H73: =SUM(H68:H72) -> 1,326,692
C75: Long-Term Assets
C76: Property, plant, and equipment | D76: 2,701,221 | E76: 2,400,000 | F76: 2,472,000 | G76: 2,546,160 | H76: 2,622,545
C77: Less accumulated depreciation | D77: 450,204 | E77: 400,000 | F77: 412,000 | G77: 424,360 | H77: 437,091
C78: Net property, plant, and equipment | D78: =+D76-D77 -> 2,251,018 | E78: =+E76-E77 -> 2,000,000 | F78: =+F76-F77 -> 2,060,000 | G78: =+G76-G77 -> 2,121,800 | H78: =+H76-H77 -> 2,185,454
C79: Other long-term assets | D79: 58,765 | E79: 55,000 | F79: 55,900 | G79: 56,827 | H79: 57,782
C80: Total Long-Term Assets | D80: =SUM(D78:D79) -> 2,309,783 | E80: =SUM(E78:E79) -> 2,055,000 | F80: =SUM(F78:F79) -> 2,115,900 | G80: =SUM(G78:G79) -> 2,178,627 | H80: =SUM(H78:H79) -> 2,243,236
C82: Total Assets | D82: =D73+D80 -> 3,677,074 | E82: =E73+E80 -> 3,267,200 | F82: =F73+F80 -> 3,366,430 | G82: =G73+G80 -> 3,466,377 | H82: =H73+H80 -> 3,569,928
C84: LIABILITIES AND SHAREHOLDERS' EQUITY
C86: Current Liabilities
C87: Short-term debt | D87: 675,305 | E87: 600,000 | F87: 618,000 | G87: 636,540 | H87: 655,636
C88: Current maturities of long-term debt | D88: 112,551 | E88: 100,000 | F88: 103,000 | G88: 106,090 | H88: 109,273
C89: Accounts payable | D89: 112,551 | E89: 100,000 | F89: 103,000 | G89: 106,090 | H89: 109,273
C90: Income taxes payable | D90: 33,765 | E90: 30,000 | F90: 30,900 | G90: 31,827 | H90: 32,782
C91: Accrued liabilities | D91: 101,296 | E91: 90,000 | F91: 92,700 | G91: 95,481 | H91: 98,345
C92: Other | D92: 18,008 | E92: 16,000 | F92: 16,480 | G92: 16,974 | H92: 17,484
C93: Total Current Liabilities | D93: =SUM(D87:D92) -> 1,053,476 | E93: =SUM(E87:E92) -> 936,000 | F93: =SUM(F87:F92) -> 964,080 | G93: =SUM(G87:G92) -> 993,002 | H93: =SUM(H87:H92) -> 1,022,792
C95: Long-Term Liabilities
C96: Long-term debt less current maturities | D96: 692,156 | E96: 601,200 | F96: 624,200 | G96: 645,630 | H96: 668,308
C97: Deferred income taxes | D97: 112,551 | E97: 100,000 | F97: 103,000 | G97: 106,090 | H97: 109,273
C98: Other long-term liabilities | D98: 85,903 | E98: 79,000 | F98: 80,650 | G98: 82,350 | H98: 84,101
C99: Total Long-Term Liabilities | D99: =SUM(D96:D98) -> 890,610 | E99: =SUM(E96:E98) -> 780,200 | F99: =SUM(F96:F98) -> 807,850 | G99: =SUM(G96:G98) -> 834,070 | H99: =SUM(H96:H98) -> 861,682
C101: Total Liabilities | D101: =D93+D99 -> 1,944,086 | E101: =E93+E99 -> 1,716,200 | F101: =F93+F99 -> 1,771,930 | G101: =G93+G99 -> 1,827,072 | H101: =H93+H99 -> 1,884,474
C102: Shareholders' Equity
C103: Common stock | D103: 100,000 | E103: 100,000 | F103: 100,000 | G103: 100,000 | H103: 100,000
C104: Additional paid-in capital | D104: 1,000 | E104: 1,000 | F104: 1,000 | G104: 1,000 | H104: 1,000
C105: Retained earnings | D105: 56,275 | E105: 50,000 | F105: 51,500 | G105: 53,045 | H105: 54,636
C106: Other | D106: 1,575,712 | E106: 1,400,000 | F106: 1,442,000 | G106: 1,485,260 | H106: 1,529,818
C107: Total Shareholders' Equity | D107: =SUM(D103:D106) -> 1,732,988 | E107: =SUM(E103:E106) -> 1,551,000 | F107: =SUM(F103:F106) -> 1,594,500 | G107: =SUM(G103:G106) -> 1,639,305 | H107: =SUM(H103:H106) -> 1,685,454
C109: Total Liabilities and Shareholders' Equity | D109: =D93+D99+D107 -> 3,677,074 | E109: =E93+E99+E107 -> 3,267,200 | F109: =F93+F99+F107 -> 3,366,430 | G109: =G93+G99+G107 -> 3,466,377 | H109: =H93+H99+H107 -> 3,569,929

Sheet Comprehensive Ratio Analysis
B2: FSIC | F2: 1213 | G2: 1214 | H2: 1215 | I2: 1216
B3: ABD | C3: Allowance for Bad Debt | F3: $0 | G3: $0 | H3: $0 | I3: $0
B4: AD | C4: Accumulated Depreciation | F4: ='Data Entry'!E77 -> $400,000 | G4: ='Data Entry'!F77 -> $412,000 | H4: ='Data Entry'!G77 -> $424,360 | I4: ='Data Entry'!H77 -> $437,091
B5: ADE | C5: Amortization and Depreciation Expense | F5: ='Data Entry'!D40 -> $1,000 | G5: ='Data Entry'!E40 -> $1,030 | H5: ='Data Entry'!F40 -> $1,061 | I5: ='Data Entry'!G40 -> $1,061
B6: AP | C6: Accounts Payable | F6: ='Data Entry'!E89 -> $100,000 | G6: ='Data Entry'!F89 -> $103,000 | H6: ='Data Entry'!G89 -> $106,090 | I6: ='Data Entry'!H89 -> $109,273
B7: AR | C7: Accounts Receivable | F7: ='Data Entry'!E70 -> $350,000 | G7: ='Data Entry'!F70 -> $360,500 | H7: ='Data Entry'!G70 -> $371,315 | I7: ='Data Entry'!H70 -> $382,454
B8: BDE | C8: Bad Debt Expense | F8: $0 | G8: $0 | H8: $0 | I8: $0
B9: CCE | C9: Cash & Cash Equivalent | F9: ='Data Entry'!E68 -> $451,000 | G9: ='Data Entry'!F68 -> $464,530 | H9: ='Data Entry'!G68 -> $478,466 | I9: ='Data Entry'!H68 -> $492,820
B10: COS | C10: Cost of Sales | F10: ='Data Entry'!D19 -> $945,000 | G10: ='Data Entry'!E19 -> $973,350 | H10: ='Data Entry'!F19 -> $1,002,551 | I10: ='Data Entry'!G19 -> $1,120,901
B11: EQ | C11: Equity | F11: ='Data Entry'!E107 -> $1,551,000 | G11: ='Data Entry'!F107 -> $1,594,500 | H11: ='Data Entry'!G107 -> $1,639,305 | I11: ='Data Entry'!H107 -> $1,685,454
B12: INT | C12: Interest Expense | F12: ='Data Entry'!D41 -> $6,000 | G12: ='Data Entry'!E41 -> $6,000 | H12: ='Data Entry'!F41 -> $6,000 | I12: ='Data Entry'!G41 -> $6,000
B13: INV | C13: Inventory | F13: ='Data Entry'!E71 -> $400,000 | G13: ='Data Entry'!F71 -> $412,000 | H13: ='Data Entry'!G71 -> $424,360 | I13: ='Data Entry'!H71 -> $437,091
B14: IT | C14: Income Taxes | F14: ='Data Entry'!D53 -> $148,563 | G14: ='Data Entry'!E53 -> $149,144 | H14: ='Data Entry'!F53 -> $152,922 | I14: ='Data Entry'!G53 -> $162,629
B15: LTD | C15: Long Term Debt | F15: ='Data Entry'!E99 -> $780,200 | G15: ='Data Entry'!F99 -> $807,850 | H15: ='Data Entry'!G99 -> $834,070 | I15: ='Data Entry'!H99 -> $861,682
B16: NS | C16: Net Sales | F16: ='Data Entry'!D12 -> $2,010,000 | G16: ='Data Entry'!E12 -> $2,060,000 | H16: ='Data Entry'!F12 -> $2,121,800 | I16: ='Data Entry'!G12 -> $2,391,800
B17: OC | C17: Officers Compensation | F17: $0 | G17: $0 | H17: $0 | I17: $0
B18: OCA | C18: Other Current Assets | F18: $0 | G18: $0 | H18: $0 | I18: $0
B19: OCL | C19: Other Current Liabilities | F19: $0 | G19: $0 | H19: $0 | I19: $0
B20: ONCA | C20: Other Non-Current Assets | F20: $0 | G20: $0 | H20: $0 | I20: $0
B21: ONCL | C21: Other Non-Current Liabilities | F21: $0 | G21: $0 | H21: $0 | I21: $0
B22: ONOE | C22: Other Non-Operating Expense | F22: $0 | G22: $0 | H22: $0 | I22: $0
B23: ONOI | C23: Other Non-Operating Income | F23: $0 | G23: $0 | H23: $0 | I23: $0
B24: OOE | C24: Other Operating Expense | F24: $0 | G24: $0 | H24: $0 | I24: $0
B25: PPE | C25: Property, Plant, & Equipment | F25: ='Data Entry'!E76 -> $2,400,000 | G25: ='Data Entry'!F76 -> $2,472,000 | H25: ='Data Entry'!G76 -> $2,546,160 | I25: ='Data Entry'!H76 -> $2,622,545
B26: RE | C26: Retained Earnings | F26: ='Data Entry'!E105 -> $50,000 | G26: ='Data Entry'!F105 -> $51,500 | H26: ='Data Entry'!G105 -> $53,045 | I26: ='Data Entry'!H105 -> $54,636
B27: STD | C27: Short Term Debt | F27: ='Data Entry'!E87 -> $600,000 | G27: ='Data Entry'!F87 -> $618,000 | H27: ='Data Entry'!G87 -> $636,540 | I27: ='Data Entry'!H87 -> $655,636
B28: FY | C28: Fiscal Year | F28: 2001 | G28: 2001 | H28: 2001 | I28: 2001
B29: PN | C29: Period Number | F29: 1 | G29: 2 | H29: 3 | I29: 4
B30: PI | C30: Period Index | F30: 1213 | G30: 1214 | H30: 1215 | I30: 1216
B31: DP | C31: Days in Period | F31: 30 | G31: 31 | H31: 30 | I31: 31
B32: DY | C32: Days in Year | F32: 365 | G32: 365 | H32: 365 | I32: 365
B33: ED | C33: Period End | F33: 2000-04-30 | G33: 2000-05-31 | H33: 2000-06-30 | I33: 2000-07-31
B34: CA | C34: Current Assets | F34: ='Data Entry'!E73 -> $1,212,200 | G34: ='Data Entry'!F73 -> $1,250,530 | H34: ='Data Entry'!G73 -> $1,287,750 | I34: ='Data Entry'!H73 -> $1,326,692
B35: CL | C35: Current Liabilities | F35: ='Data Entry'!E93 -> $936,000 | G35: ='Data Entry'!F93 -> $964,080 | H35: ='Data Entry'!G93 -> $993,002 | I35: ='Data Entry'!H93 -> $1,022,792
B36: QA | C36: Quick Assets | F36: =('Data Entry'!D73-'Data Entry'!D71) -> $917,088 | G36: =('Data Entry'!E73-'Data Entry'!E71) -> $812,200 | H36: =('Data Entry'!F73-'Data Entry'!F71) -> $838,530 | I36: =('Data Entry'!G73-'Data Entry'!G71) -> $863,390
B37: ARN | C37: Accounts Receivables Net | F37: ='Data Entry'!E70 -> $350,000 | G37: ='Data Entry'!F70 -> $360,500 | H37: ='Data Entry'!G70 -> $371,315 | I37: ='Data Entry'!H70 -> $382,454
B38: NW | C38: Net Worth | F38: ='Data Entry'!D82-'Data Entry'!D101 -> $1,732,988 | G38: ='Data Entry'!E82-'Data Entry'!E101 -> $1,551,000 | H38: ='Data Entry'!F82-'Data Entry'!F101 -> $1,594,500 | I38: ='Data Entry'!G82-'Data Entry'!G101 -> $1,639,305
B39: TL | C39: Total Liabilities | F39: ='Data Entry'!E101 -> $1,716,200 | G39: ='Data Entry'!F101 -> $1,771,930 | H39: ='Data Entry'!G101 -> $1,827,072 | I39: ='Data Entry'!H101 -> $1,884,474
B40: WC | C40: Working Capital | F40: ='Data Entry'!D73-'Data Entry'!D93 -> $313,815 | G40: ='Data Entry'!E73-'Data Entry'!E93 -> $276,200 | H40: ='Data Entry'!F73-'Data Entry'!F93 -> $286,450 | I40: ='Data Entry'!G73-'Data Entry'!G93 -> $294,748
B41: TA | C41: Total Assets | F41: ='Data Entry'!E82 -> $3,267,200 | G41: ='Data Entry'!F82 -> $3,366,430 | H41: ='Data Entry'!G82 -> $3,466,377 | I41: ='Data Entry'!H82 -> $3,569,928
B42: NI | C42: Net Income | F42: ='Data Entry'!D55 -> $615,554 | G42: ='Data Entry'!E55 -> $633,477 | H42: ='Data Entry'!F55 -> $659,057 | I42: ='Data Entry'!G55 -> $798,348
B43: IBT | C43: Income Before Tax | F43: ='Data Entry'!D51 -> $764,117 | G43: ='Data Entry'!E51 -> $782,621 | H43: ='Data Entry'!F51 -> $811,979 | I43: ='Data Entry'!G51 -> $960,977
B44: FA | C44: Fixed Assets | F44: ='Data Entry'!E80 -> $2,055,000 | G44: ='Data Entry'!F80 -> $2,115,900 | H44: ='Data Entry'!G80 -> $2,178,627 | I44: ='Data Entry'!H80 -> $2,243,236
B45: OE | C45: Operating Expenses | F45: ='Data Entry'!D43 -> $317,133 | G45: ='Data Entry'!E43 -> $320,767 | H45: ='Data Entry'!F43 -> $324,510 | I45: ='Data Entry'!G43 -> $328,150
B46: IBIT | C46: Income Before Interest & Taxes | F46: ='Data Entry'!D45 -> $747,867 | G46: ='Data Entry'!E45 -> $765,883 | H46: ='Data Entry'!F45 -> $794,740 | I46: ='Data Entry'!G45 -> $942,750
C47: Net Fixed Assets to Net Worth | F47: ($0) | G47: ($0) | H47: ($0) | I47: ($0)
C48: Officers Compensation to Net Sales | F48: $0 | G48: $0 | H48: $0 | I48: $0
C51: Comprehensive Ratios Report
D52: Description | F52: ='Data Entry'!D7 -> 2010 | G52: ='Data Entry'!E7 -> 2011 | H52: ='Data Entry'!F7 -> 2012 | I52: ='Data Entry'!G7 -> 2013 | J52: =I52+1 -> 2014
C53: Financial Health Ratios
C54: Altman Z Score-Small Business/Service | F54: =IF(TA=0,"N/A", WC/TA*6.56+ RE/TA*3.26+ IBIT/TA*6.72+ EQ/TL*1.05) -> 3.17 | G54: =IF(TA=0,"N/A", WC/TA*6.56+ RE/TA*3.26+ IBIT/TA*6.72+ EQ/TL*1.05) -> 3.06 | H54: =IF(TA=0,"N/A", WC/TA*6.56+ RE/TA*3.26+ IBIT/TA*6.72+ EQ/TL*1.05) -> 3.07 | I54: =IF(TA=0,"N/A", WC/TA*6.56+ RE/TA*3.26+ IBIT/TA*6.72+ EQ/TL*1.05) -> 3.31 | J54: =FORECAST(J52,F54:I54,F52:I52) -> 3.26
C55: Liquidity Ratios
C56: Current Ratio | F56: =IF(CL=0,"N/A",CA/CL) -> 1.30 | G56: =IF(CL=0,"N/A",CA/CL) -> 1.30 | H56: =IF(CL=0,"N/A",CA/CL) -> 1.30 | I56: =IF(CL=0,"N/A",CA/CL) -> 1.30 | J56: =FORECAST(J52,F56:I56,F52:I52) -> 1.30
C57: Gross Margin Percentage | F57: =IF(CL=0,"N/A",QA/CL) -> 0.98 | G57: =IF(CL=0,"N/A",QA/CL) -> 0.84 | H57: =IF(CL=0,"N/A",QA/CL) -> 0.84 | I57: =IF(CL=0,"N/A",QA/CL) -> 0.84 | J57: =FORECAST($J$52,F57:I57,$F$52:$I$52) -> 0.78
C58: Activity Ratios
C59: Days Sales in AR | F59: =IF(NS=0,"N/A",ARN*DP/NS) -> 5.22 | G59: =IF(NS=0,"N/A",ARN*DP/NS) -> 5.43 | H59: =IF(NS=0,"N/A",ARN*DP/NS) -> 5.25 | I59: =IF(NS=0,"N/A",ARN*DP/NS) -> 4.96 | J59: 4.97
C60: Inventory Turnover | F60: =(COS)/(INV) -> 2.36 | G60: =(COS)/(INV) -> 2.36 | H60: =(COS)/(INV) -> 2.36 | I60: =(COS)/(INV) -> 2.56 | J60: 2.56
C61: Days Inventory | F61: =IF(COS=0,"N/A",(INV*365)/COS) -> 154.50 | G61: =IF(COS=0,"N/A",(INV*365)/COS) -> 154.50 | H61: =IF(COS=0,"N/A",(INV*365)/COS) -> 154.50 | I61: =IF(COS=0,"N/A",(INV*365)/COS) -> 142.33 | J61: 142.33
C62: Net Sales to Inventory | F62: =(NS)/(INV) -> 5.03 | G62: =(NS)/(INV) -> 5.00 | H62: =(NS)/(INV) -> 5.00 | I62: =(NS)/(INV) -> 5.47 | J62: 5.46
C63: Days Purchases in AP | F63: =IF(COS=0,"N/A",(AP*365)/COS) -> 38.62 | G63: =IF(COS=0,"N/A",(AP*365)/COS) -> 38.62 | H63: =IF(COS=0,"N/A",(AP*365)/COS) -> 38.62 | I63: =IF(COS=0,"N/A",(AP*365)/COS) -> 35.58 | J63: 35.58
C64: Net Sales to Working Capital | F64: =(NS)/(WC) -> 6.41 | G64: =(NS)/(WC) -> 7.46 | H64: =(NS)/(WC) -> 7.41 | I64: =(NS)/(WC) -> 8.11 | J64: 8.62
C65: Total Assets to Net Sales | F65: =(TA)/(NS) -> 1.63 | G65: =(TA)/(NS) -> 1.63 | H65: =(TA)/(NS) -> 1.63 | I65: =(TA)/(NS) -> 1.49 | J65: 1.50
C66: Net Sales to AR | F66: =(NS)/(ARN) -> 5.74 | G66: =(NS)/(ARN) -> 5.71 | H66: =(NS)/(ARN) -> 5.71 | I66: =(NS)/(ARN) -> 6.25 | J66: 6.24
C67: Net Sales to Net Fixed Assets | F67: =(NS)/(FA) -> 0.98 | G67: =(NS)/(FA) -> 0.97 | H67: =(NS)/(FA) -> 0.97 | I67: =(NS)/(FA) -> 1.07 | J67: 1.06
C68: Net Sales to Total Assets | F68: =(NS)/(TA) -> 0.62 | G68: =(NS)/(TA) -> 0.61 | H68: =(NS)/(TA) -> 0.61 | I68: =(NS)/(TA) -> 0.67 | J68: 0.67
C69: Net Sales to Net Worth | F69: =(NS)/(NW) -> 1.16 | G69: =(NS)/(NW) -> 1.33 | H69: =(NS)/(NW) -> 1.33 | I69: =(NS)/(NW) -> 1.46 | J69: 1.54
C70: Amortization and Depreciation Expense to Net Sales | F70: =IF(NS=0,"N/A",ADE/NS) -> 0.00 | G70: =IF(NS=0,"N/A",ADE/NS) -> 0.00 | H70: =IF(NS=0,"N/A",ADE/NS) -> 0.00 | I70: =IF(NS=0,"N/A",ADE/NS) -> 0.00 | J70: 0.00
C71: Profitability Ratios
C72: Gross Profit Percentage | F72: =IF(NS=0,"N/A",(NS-COS)/NS) -> 52.99% | G72: =IF(NS=0,"N/A",(NS-COS)/NS) -> 52.75% | H72: =IF(NS=0,"N/A",(NS-COS)/NS) -> 52.75% | I72: =IF(NS=0,"N/A",(NS-COS)/NS) -> 53.14% | J72: =FORECAST($J$52,F72:I72,$F$52:$I$52) -> 53%
C73: Operating Expenses as % of Net Sales | F73: =IF(NS=0,"N/A",OE/NS) -> 15.78% | G73: =IF(NS=0,"N/A",OE/NS) -> 15.57% | H73: =IF(NS=0,"N/A",OE/NS) -> 15.29% | I73: =IF(NS=0,"N/A",OE/NS) -> 13.72% | J73: 13%
C74: Return on Total Assets | F74: =(NI)/(TA) -> 18.84% | G74: =(NI)/(TA) -> 18.82% | H74: =(NI)/(TA) -> 19.01% | I74: =(NI)/(TA) -> 22.36% | J74: 22%
C75: Return on Net Worth | F75: =(NI)/(NW) -> 35.52% | G75: =(NI)/(NW) -> 40.84% | H75: =(NI)/(NW) -> 41.33% | I75: =(NI)/(NW) -> 48.70% | J75: 52%
C76: Return on Net Sales | F76: =IF(NS=0,"N/A",NI/NS) -> 30.62% | G76: =IF(NS=0,"N/A",NI/NS) -> 30.75% | H76: =IF(NS=0,"N/A",NI/NS) -> 31.06% | I76: =IF(NS=0,"N/A",NI/NS) -> 33.38% | J76: 34%
C77: Income before tax to Net Worth | F77: =(IBT)/(NW) -> 44% | G77: =(IBT)/(NW) -> 50% | H77: =(IBT)/(NW) -> 51% | I77: =(IBT)/(NW) -> 59% | J77: 62%
C78: Income before tax to Total Assets | F78: =(IBT)/(TA) -> 23% | G78: =(IBT)/(TA) -> 23% | H78: =(IBT)/(TA) -> 23% | I78: =(IBT)/(TA) -> 27% | J78: 27%
C79: Retained Earning to Net Income | F79: =((F26))/(NI) -> 8% | G79: =((G26))/(NI) -> 8% | H79: =((H26))/(NI) -> 8% | I79: =((I26))/(NI) -> 7% | J79: 7%
C80: Coverage Ratios
C81: Times Interest Earned | F81: =IF(INT=0,"N/A",IBIT/INT) -> 124.64 | G81: =IF(INT=0,"N/A",IBIT/INT) -> 127.65 | H81: =IF(INT=0,"N/A",IBIT/INT) -> 132.46 | I81: =IF(INT=0,"N/A",IBIT/INT) -> 157.12 | J81: =FORECAST($J$52,F81:I81,$F$52:$I$52) -> 161.03
C82: Interest Expense to Net Sales | F82: =IF(NS=0,"N/A",INT/NS) -> 0.00 | G82: =IF(NS=0,"N/A",INT/NS) -> 0.00 | H82: =IF(NS=0,"N/A",INT/NS) -> 0.00 | I82: =IF(NS=0,"N/A",INT/NS) -> 0.00 | J82: 0.00
C83: Current Liabilities to Net Worth | F83: =IF(NW=0,"N/A",CL/NW) -> 0.54 | G83: =IF(NW=0,"N/A",CL/NW) -> 0.62 | H83: =IF(NW=0,"N/A",CL/NW) -> 0.62 | I83: =IF(NW=0,"N/A",CL/NW) -> 0.62 | J83: 0.67
C84: Current Liabilities to Inventory | F84: =IF(INV=0,"N/A",CL/INV) -> 2.34 | G84: =IF(INV=0,"N/A",CL/INV) -> 2.34 | H84: =IF(INV=0,"N/A",CL/INV) -> 2.34 | I84: =IF(INV=0,"N/A",CL/INV) -> 2.34 | J84: 2.34
C85: AP to Net Sales | F85: =(AP)/(NS) -> 0.05 | G85: =(AP)/(NS) -> 0.05 | H85: =(AP)/(NS) -> 0.05 | I85: =(AP)/(NS) -> 0.05 | J85: 0.05
C86: Total Liabilities to Net Worth | F86: =IF(NW=0,"N/A",TL/NW) -> 0.99 | G86: =IF(NW=0,"N/A",TL/NW) -> 1.14 | H86: =IF(NW=0,"N/A",TL/NW) -> 1.15 | I86: =IF(NW=0,"N/A",TL/NW) -> 1.15 | J86: 1.23
C87: Net Worth to Total Liabilities | F87: =IF(TL=0,"N/A",NW/TL) -> 1.01 | G87: =IF(TL=0,"N/A",NW/TL) -> 0.88 | H87: =IF(TL=0,"N/A",NW/TL) -> 0.87 | I87: =IF(TL=0,"N/A",NW/TL) -> 0.87 | J87: 0.80
